[Event "Early-Titled-Tuesday-Blitz-September-26-2023"]
[Site "Chess.com"]
[Date "2023.09.26"]
[Round "3"]
[White "DonJuanEGenaro"]
[Black "blitzking1729"]
[Result "0-1"]
[WhiteElo "1859"]
[BlackElo "2762"]
[TimeControl "180+1"]
[EndTime "8:27:21 PDT"]
[Termination "blitzking1729 won by checkmate"]

1. Nf3 {[%clk 0:03:00.9]} 1... c5 {[%clk 0:02:58.8]} 2. c3 {[%clk 0:02:58.1]}
2... Nc6 {[%clk 0:02:56.1]} 3. d4 {[%clk 0:02:57.7]} 3... d5 {[%clk 0:02:54.6]}
4. Bf4 {[%clk 0:02:54.3]} 4... Nf6 {[%clk 0:02:54]} 5. e3 {[%clk 0:02:53.5]}
5... e6 {[%clk 0:02:53.6]} 6. a3 {[%clk 0:02:48.6]} 6... Nh5 {[%clk 0:02:52.2]}
7. Bg5 {[%clk 0:02:46.9]} 7... f6 {[%clk 0:02:52.2]} 8. Bh4 {[%clk 0:02:43.1]}
8... g6 {[%clk 0:02:45.2]} 9. g4 {[%clk 0:02:29.6]} 9... Ng7 {[%clk 0:02:43.9]}
10. b4 {[%clk 0:02:20.2]} 10... c4 {[%clk 0:02:37.2]} 11. Nbd2 {[%clk
0:02:11.7]} 11... Be7 {[%clk 0:02:36.2]} 12. Bg3 {[%clk 0:02:02.9]} 12... h5
{[%clk 0:02:33.5]} 13. Nh4 {[%clk 0:01:53.6]} 13... Kf7 {[%clk 0:02:28.4]} 14.
e4 {[%clk 0:01:44.8]} 14... f5 {[%clk 0:02:21.2]} 15. exf5 {[%clk 0:01:20.2]}
15... Bxh4 {[%clk 0:02:09.5]} 16. fxg6+ {[%clk 0:01:19.9]} 16... Kxg6 {[%clk
0:02:08.4]} 17. Nf3 {[%clk 0:00:52.7]} 17... Bxg3 {[%clk 0:02:04]} 18. fxg3
{[%clk 0:00:52.6]} 18... hxg4 {[%clk 0:02:03.7]} 19. Nh4+ {[%clk 0:00:46.9]}
19... Rxh4 {[%clk 0:02:00.4]} 20. gxh4 {[%clk 0:00:46.6]} 20... Qxh4+ {[%clk
0:02:01.3]} 21. Kd2 {[%clk 0:00:46.2]} 21... e5 {[%clk 0:01:52.9]} 22. Qe2
{[%clk 0:00:37.8]} 22... Be6 {[%clk 0:01:38.7]} 23. dxe5 {[%clk 0:00:30.3]}
23... Rf8 {[%clk 0:01:38.2]} 24. Kc1 {[%clk 0:00:19]} 24... Rf2 {[%clk
0:01:29.3]} 25. Qe3 {[%clk 0:00:18.9]} 25... Qg5 {[%clk 0:01:21.5]} 26. Qxg5+
{[%clk 0:00:17.8]} 26... Kxg5 {[%clk 0:01:22.4]} 27. h4+ {[%clk 0:00:15.6]}
27... Kh5 {[%clk 0:01:20.6]} 28. Kd1 {[%clk 0:00:14.2]} 28... Nxe5 {[%clk
0:01:18]} 29. Be2 {[%clk 0:00:14.2]} 29... Nf5 {[%clk 0:01:07.7]} 30. Ra2 {[%clk
0:00:13.7]} 30... Ng3 {[%clk 0:01:02.4]} 31. Bxg4+ {[%clk 0:00:08.5]} 31...
Bxg4+ {[%clk 0:01:02.4]} 32. Ke1 {[%clk 0:00:06.4]} 32... Nd3# {[%clk
0:01:01.4]} 0-1

[Event "Early-Titled-Tuesday-Blitz-September-26-2023"]
[Site "Chess.com"]
[Date "2023.09.26"]
[Round "3"]
[White "gau248"]
[Black "KatakuriDono"]
[Result "1-0"]
[WhiteElo "2594"]
[BlackElo "2327"]
[TimeControl "180+1"]
[EndTime "8:27:26 PDT"]
[Termination "gau248 won by resignation"]

1. c4 {[%clk 0:02:59.8]} 1... e5 {[%clk 0:02:57.7]} 2. d3 {[%clk 0:02:58.8]}
2... Nf6 {[%clk 0:02:55.4]} 3. Nf3 {[%clk 0:02:56.7]} 3... Nc6 {[%clk
0:02:54.9]} 4. a3 {[%clk 0:02:56.8]} 4... a5 {[%clk 0:02:53.9]} 5. Nc3 {[%clk
0:02:45.4]} 5... d6 {[%clk 0:02:48.9]} 6. g3 {[%clk 0:02:44.4]} 6... g6 {[%clk
0:02:48.7]} 7. Bg2 {[%clk 0:02:44.7]} 7... Bg7 {[%clk 0:02:49.2]} 8. O-O {[%clk
0:02:44.8]} 8... O-O {[%clk 0:02:49.3]} 9. Bg5 {[%clk 0:02:38.6]} 9... h6 {[%clk
0:02:44.5]} 10. Bxf6 {[%clk 0:02:38.4]} 10... Qxf6 {[%clk 0:02:43.8]} 11. Nd5
{[%clk 0:02:37.9]} 11... Qd8 {[%clk 0:02:43.8]} 12. Nd2 {[%clk 0:02:25.2]} 12...
f5 {[%clk 0:02:40.9]} 13. e3 {[%clk 0:02:22.2]} 13... Be6 {[%clk 0:02:38]} 14.
Qb3 {[%clk 0:02:01.2]} 14... Qc8 {[%clk 0:02:25.5]} 15. Qb5 {[%clk 0:01:57.1]}
15... Kh7 {[%clk 0:02:14.8]} 16. b4 {[%clk 0:01:49.6]} 16... e4 {[%clk 0:01:47]}
17. d4 {[%clk 0:01:40.9]} 17... Bxd5 {[%clk 0:01:38.2]} 18. cxd5 {[%clk
0:01:35.1]} 18... Ne7 {[%clk 0:01:38.2]} 19. Rfc1 {[%clk 0:01:30.6]} 19... c6
{[%clk 0:01:30.7]} 20. dxc6 {[%clk 0:01:26.8]} 20... bxc6 {[%clk 0:01:30.9]} 21.
Qc4 {[%clk 0:01:23.2]} 21... axb4 {[%clk 0:01:08.1]} 22. axb4 {[%clk 0:01:21.2]}
22... Rxa1 {[%clk 0:01:09]} 23. Rxa1 {[%clk 0:01:21.7]} 23... c5 {[%clk
0:01:01.3]} 24. bxc5 {[%clk 0:01:04.1]} 24... dxc5 {[%clk 0:01:00.7]} 25. Ra7
{[%clk 0:01:01.5]} 25... Nc6 {[%clk 0:00:48.7]} 26. Ra6 {[%clk 0:00:58.4]} 26...
Nb4 {[%clk 0:00:41.4]} 27. Ra5 {[%clk 0:00:57.1]} 27... Nd3 {[%clk 0:00:38.3]}
28. dxc5 {[%clk 0:00:53.4]} 28... Rd8 {[%clk 0:00:36.3]} 29. Nb3 {[%clk
0:00:45.2]} 29... Nb2 {[%clk 0:00:26.1]} 30. Qa6 {[%clk 0:00:33.2]} 30... Rd1+
{[%clk 0:00:25.5]} 31. Bf1 {[%clk 0:00:32.3]} 31... Qe6 {[%clk 0:00:25.2]} 32.
Qxe6 {[%clk 0:00:31.1]} 1-0

[Event "Early-Titled-Tuesday-Blitz-September-26-2023"]
[Site "Chess.com"]
[Date "2023.09.26"]
[Round "3"]
[White "Wizard_97"]
[Black "AlmasRakhmatullaev"]
[Result "1/2-1/2"]
[WhiteElo "2558"]
[BlackElo "2779"]
[TimeControl "180+1"]
[EndTime "8:27:31 PDT"]
[Termination "Game drawn by repetition"]

1. e4 {[%clk 0:02:53.3]} 1... c5 {[%clk 0:02:59.4]} 2. Nf3 {[%clk 0:02:52.2]}
2... e6 {[%clk 0:03:00.1]} 3. d4 {[%clk 0:02:52.1]} 3... cxd4 {[%clk 0:03:01]}
4. Nxd4 {[%clk 0:02:53]} 4... Nf6 {[%clk 0:03:01.7]} 5. Nc3 {[%clk 0:02:53]}
5... Nc6 {[%clk 0:03:02.4]} 6. Nxc6 {[%clk 0:02:53.7]} 6... bxc6 {[%clk
0:03:01.7]} 7. e5 {[%clk 0:02:54.2]} 7... Nd5 {[%clk 0:03:01.6]} 8. Ne4 {[%clk
0:02:55.1]} 8... Qc7 {[%clk 0:02:57.8]} 9. f4 {[%clk 0:02:55.4]} 9... Qb6 {[%clk
0:02:55.6]} 10. c4 {[%clk 0:02:55.9]} 10... Bb4+ {[%clk 0:02:52.4]} 11. Ke2
{[%clk 0:02:56.2]} 11... Ba6 {[%clk 0:02:49.2]} 12. Kf3 {[%clk 0:02:55.5]} 12...
f5 {[%clk 0:02:49.4]} 13. exf6 {[%clk 0:02:55.7]} 13... Nxf6 {[%clk 0:02:49.3]}
14. Nxf6+ {[%clk 0:02:53]} 14... gxf6 {[%clk 0:02:50.2]} 15. Be3 {[%clk
0:02:53.3]} 15... Bc5 {[%clk 0:02:46.2]} 16. Bxc5 {[%clk 0:02:45.6]} 16... Qxc5
{[%clk 0:02:47.1]} 17. b3 {[%clk 0:02:45]} 17... O-O-O {[%clk 0:02:42.6]} 18.
Qd2 {[%clk 0:02:42.6]} 18... d5 {[%clk 0:02:38.9]} 19. Qe3 {[%clk 0:02:42.6]}
19... Qxe3+ {[%clk 0:02:31.2]} 20. Kxe3 {[%clk 0:02:43.5]} 20... d4+ {[%clk
0:02:32.1]} 21. Kd2 {[%clk 0:02:43.6]} 21... c5 {[%clk 0:02:12.9]} 22. Bd3
{[%clk 0:02:35.8]} 22... Bb7 {[%clk 0:02:13.2]} 23. Rhe1 {[%clk 0:02:35.1]}
23... Kd7 {[%clk 0:02:10.6]} 24. Be4 {[%clk 0:02:33.3]} 24... Bxe4 {[%clk
0:02:04.1]} 25. Rxe4 {[%clk 0:02:34.2]} 25... Rhg8 {[%clk 0:02:05]} 26. Re2
{[%clk 0:02:34.3]} 26... Rg4 {[%clk 0:02:03.7]} 27. Rae1 {[%clk 0:02:33.8]}
27... Re8 {[%clk 0:02:00.8]} 28. Rf1 {[%clk 0:02:15.9]} 28... Reg8 {[%clk
0:01:57.7]} 29. Rff2 {[%clk 0:02:15.5]} 29... h5 {[%clk 0:01:56.3]} 30. Ke1
{[%clk 0:02:14.8]} 30... h4 {[%clk 0:01:53.5]} 31. Kf1 {[%clk 0:02:15.4]} 31...
Kd6 {[%clk 0:01:48]} 32. Rf3 {[%clk 0:02:15.3]} 32... R8g6 {[%clk 0:01:43.4]}
33. Rxe6+ {[%clk 0:02:09.9]} 33... Kxe6 {[%clk 0:01:39.3]} 34. f5+ {[%clk
0:02:10.5]} 34... Ke5 {[%clk 0:01:38.9]} 35. fxg6 {[%clk 0:02:11.4]} 35... Rxg6
{[%clk 0:01:39.5]} 36. g3 {[%clk 0:02:06.3]} 36... Rg4 {[%clk 0:01:22.1]} 37.
Ke2 {[%clk 0:02:02]} 37... hxg3 {[%clk 0:01:05.6]} 38. hxg3 {[%clk 0:02:02.9]}
38... Ke4 {[%clk 0:01:03.4]} 39. Rxf6 {[%clk 0:02:01.7]} 39... Rxg3 {[%clk
0:01:00.7]} 40. Re6+ {[%clk 0:02:02.2]} 40... Kf4 {[%clk 0:00:59.3]} 41. Rf6+
{[%clk 0:02:01.1]} 41... Ke5 {[%clk 0:00:52.8]} 42. Rc6 {[%clk 0:02:01]} 42...
Rg2+ {[%clk 0:00:50.3]} 43. Kd3 {[%clk 0:01:59.4]} 43... Rg3+ {[%clk 0:00:48.3]}
44. Ke2 {[%clk 0:01:59.3]} 44... Ke4 {[%clk 0:00:48.2]} 45. Re6+ {[%clk
0:01:57.9]} 45... Kf4 {[%clk 0:00:26.9]} 46. Rc6 {[%clk 0:01:57.5]} 46... Rg5
{[%clk 0:00:21.1]} 47. Ra6 {[%clk 0:01:51.2]} 47... Ke4 {[%clk 0:00:20.4]} 48.
Re6+ {[%clk 0:01:51.3]} 48... Re5 {[%clk 0:00:20.4]} 49. Ra6 {[%clk 0:01:40.5]}
49... Rg5 {[%clk 0:00:20.2]} 50. Re6+ {[%clk 0:01:39.9]} 50... Kf5 {[%clk
0:00:16.7]} 51. Rc6 {[%clk 0:01:38]} 51... Ke4 {[%clk 0:00:14.6]} 52. Re6+
{[%clk 0:01:38]} 1/2-1/2

[Event "Early-Titled-Tuesday-Blitz-September-26-2023"]
[Site "Chess.com"]
[Date "2023.09.26"]
[Round "3"]
[White "meoluoi91"]
[Black "Bauman_Guy"]
[Result "0-1"]
[WhiteElo "2667"]
[BlackElo "2899"]
[TimeControl "180+1"]
[EndTime "8:27:32 PDT"]
[Termination "Bauman_Guy won by resignation"]

1. d4 {[%clk 0:03:00.9]} 1... Nf6 {[%clk 0:03:00.1]} 2. c4 {[%clk 0:02:59.2]}
2... b6 {[%clk 0:03:00.5]} 3. Nc3 {[%clk 0:02:58.8]} 3... Bb7 {[%clk 0:03:00.8]}
4. Bg5 {[%clk 0:02:57.9]} 4... g6 {[%clk 0:03:00.3]} 5. f3 {[%clk 0:02:48.5]}
5... Bg7 {[%clk 0:02:59.7]} 6. e4 {[%clk 0:02:48.4]} 6... O-O {[%clk 0:02:59.8]}
7. Nge2 {[%clk 0:02:48.3]} 7... d6 {[%clk 0:02:58.5]} 8. Qd2 {[%clk 0:02:48.4]}
8... e5 {[%clk 0:02:58.5]} 9. d5 {[%clk 0:02:47.7]} 9... a5 {[%clk 0:02:57]} 10.
Ng3 {[%clk 0:02:47.1]} 10... Na6 {[%clk 0:02:54.6]} 11. h4 {[%clk 0:02:46.9]}
11... h5 {[%clk 0:02:54]} 12. Be2 {[%clk 0:02:43.6]} 12... Nc5 {[%clk
0:02:53.8]} 13. b3 {[%clk 0:02:41.9]} 13... Qd7 {[%clk 0:02:53.4]} 14. O-O
{[%clk 0:02:38.7]} 14... Nh7 {[%clk 0:02:53.4]} 15. Bh6 {[%clk 0:02:33.2]} 15...
Qe7 {[%clk 0:02:51.5]} 16. Bg5 {[%clk 0:02:16.6]} 16... Nxg5 {[%clk 0:02:49.4]}
17. hxg5 {[%clk 0:02:17.4]} 17... Rfe8 {[%clk 0:02:39.7]} 18. Nh1 {[%clk
0:02:08.5]} 18... Bc8 {[%clk 0:02:35.9]} 19. Nf2 {[%clk 0:02:08.2]} 19... Bd7
{[%clk 0:02:33.4]} 20. Rab1 {[%clk 0:01:59.9]} 20... Qd8 {[%clk 0:02:31.4]} 21.
a3 {[%clk 0:01:50.4]} 21... Bf8 {[%clk 0:02:30.9]} 22. g3 {[%clk 0:01:44.7]}
22... a4 {[%clk 0:02:02]} 23. b4 {[%clk 0:01:43.2]} 23... Nb3 {[%clk 0:02:01.8]}
24. Qe3 {[%clk 0:01:41.9]} 24... Nd4 {[%clk 0:02:01.5]} 25. Bd3 {[%clk 0:01:36]}
25... Qxg5 {[%clk 0:02:00.2]} 26. f4 {[%clk 0:01:31.1]} 26... exf4 {[%clk
0:01:57.2]} 27. Qxf4 {[%clk 0:01:29.5]} 27... Bh6 {[%clk 0:01:44.9]} 28. Qxg5
{[%clk 0:01:13.4]} 28... Bxg5 {[%clk 0:01:45.8]} 29. Kg2 {[%clk 0:01:11.4]}
29... Kg7 {[%clk 0:01:42.4]} 30. Nh3 {[%clk 0:01:06.3]} 30... Bf6 {[%clk
0:01:40.9]} 31. Nd1 {[%clk 0:01:03.8]} 31... Nb3 {[%clk 0:01:32.3]} 32. Rf2
{[%clk 0:00:57.9]} 32... Bd4 {[%clk 0:01:31.6]} 33. Re2 {[%clk 0:00:57.5]} 33...
Bg4 {[%clk 0:01:31]} 34. Nf4 {[%clk 0:00:51.3]} 34... Bxe2 {[%clk 0:01:30.2]}
35. Nxe2 {[%clk 0:00:52.2]} 35... Be5 {[%clk 0:01:27.6]} 36. Ne3 {[%clk
0:00:48.6]} 36... Bf6 {[%clk 0:01:23.2]} 37. Nf1 {[%clk 0:00:45.8]} 37... Re7
{[%clk 0:01:18.2]} 38. Bc2 {[%clk 0:00:40]} 38... Rae8 {[%clk 0:01:13.7]} 39.
Kf3 {[%clk 0:00:30.5]} 39... Bg5 {[%clk 0:01:11.7]} 40. Bd3 {[%clk 0:00:20]}
40... f5 {[%clk 0:01:09.5]} 41. exf5 {[%clk 0:00:19.2]} 41... Re3+ {[%clk
0:01:09.9]} 0-1

[Event "Early-Titled-Tuesday-Blitz-September-26-2023"]
[Site "Chess.com"]
[Date "2023.09.26"]
[Round "3"]
[White "KVAIDAN"]
[Black "MaevskiyNikolay"]
[Result "1-0"]
[WhiteElo "2272"]
[BlackElo "2554"]
[TimeControl "180+1"]
[EndTime "8:27:40 PDT"]
[Termination "KVAIDAN won by checkmate"]

1. f4 {[%clk 0:02:59.6]} 1... g6 {[%clk 0:02:58.9]} 2. Nf3 {[%clk 0:02:59.5]}
2... d5 {[%clk 0:02:52.6]} 3. e3 {[%clk 0:02:58.7]} 3... Bg7 {[%clk 0:02:51.6]}
4. Be2 {[%clk 0:02:58.3]} 4... c5 {[%clk 0:02:51.3]} 5. O-O {[%clk 0:02:41.4]}
5... d4 {[%clk 0:02:51.4]} 6. Na3 {[%clk 0:02:38.6]} 6... Nc6 {[%clk 0:02:51.2]}
7. Qe1 {[%clk 0:02:28.7]} 7... Nh6 {[%clk 0:02:49]} 8. Nc4 {[%clk 0:02:25.9]}
8... b5 {[%clk 0:02:45.9]} 9. Nce5 {[%clk 0:02:24.6]} 9... Nxe5 {[%clk
0:02:45.6]} 10. Nxe5 {[%clk 0:02:23.8]} 10... Qb6 {[%clk 0:02:37.8]} 11. a4
{[%clk 0:02:19.7]} 11... bxa4 {[%clk 0:02:35.5]} 12. Nc4 {[%clk 0:02:16.9]}
12... Qc7 {[%clk 0:02:32.8]} 13. Rxa4 {[%clk 0:02:16.8]} 13... O-O {[%clk
0:02:27.4]} 14. e4 {[%clk 0:02:16.7]} 14... Bd7 {[%clk 0:02:24]} 15. Ra1 {[%clk
0:02:15.7]} 15... f5 {[%clk 0:02:23.1]} 16. e5 {[%clk 0:02:14.3]} 16... Bc6
{[%clk 0:02:23]} 17. d3 {[%clk 0:02:13.1]} 17... Nf7 {[%clk 0:02:22.3]} 18. Bd2
{[%clk 0:02:11]} 18... Rfb8 {[%clk 0:02:19.7]} 19. Ba5 {[%clk 0:02:09.1]} 19...
Qc8 {[%clk 0:02:18.3]} 20. b4 {[%clk 0:02:09.2]} 20... Bd5 {[%clk 0:02:15.2]}
21. Bf3 {[%clk 0:02:01.6]} 21... Qe6 {[%clk 0:02:15.1]} 22. bxc5 {[%clk
0:01:58.1]} 22... Rc8 {[%clk 0:02:14]} 23. Bb4 {[%clk 0:01:53.7]} 23... Nd8
{[%clk 0:02:11.4]} 24. Ba3 {[%clk 0:01:43.3]} 24... Nc6 {[%clk 0:02:10.3]} 25.
Rb1 {[%clk 0:01:41.8]} 25... Rab8 {[%clk 0:02:08.4]} 26. Bxd5 {[%clk 0:01:40.1]}
26... Qxd5 {[%clk 0:02:08.2]} 27. Qd2 {[%clk 0:01:37.2]} 27... Bh6 {[%clk
0:02:01.2]} 28. g3 {[%clk 0:01:36.5]} 28... Nxe5 {[%clk 0:01:57.8]} 29. Rxb8
{[%clk 0:01:26.5]} 29... Rxb8 {[%clk 0:01:55.2]} 30. Qa5 {[%clk 0:01:20.8]}
30... Nf3+ {[%clk 0:01:46]} 31. Kf2 {[%clk 0:01:14.6]} 31... Nxh2 {[%clk
0:01:45.9]} 32. Kg1 {[%clk 0:01:06.8]} 32... Ng4 {[%clk 0:01:37]} 33. Qc7 {[%clk
0:01:04.2]} 33... Re8 {[%clk 0:01:32.7]} 34. c6 {[%clk 0:00:59]} 34... g5 {[%clk
0:01:18.1]} 35. Bxe7 {[%clk 0:00:53.9]} 35... gxf4 {[%clk 0:01:18.1]} 36. Qd7
{[%clk 0:00:54.1]} 36... Qf7 {[%clk 0:00:59.1]} 37. c7 {[%clk 0:00:51.9]} 37...
Qh5 {[%clk 0:00:51.5]} 38. Bh4 {[%clk 0:00:46.5]} 38... fxg3 {[%clk 0:00:43.5]}
39. c8=Q {[%clk 0:00:45.5]} 39... Rxc8 {[%clk 0:00:35.6]} 40. Qxc8+ {[%clk
0:00:45.3]} 40... Bf8 {[%clk 0:00:36]} 41. Qe6+ {[%clk 0:00:44.6]} 41... Kh8
{[%clk 0:00:35.7]} 42. Qxf5 {[%clk 0:00:37.8]} 42... Qxh4 {[%clk 0:00:32.5]} 43.
Qxf8# {[%clk 0:00:36.8]} 1-0

[Event "Early-Titled-Tuesday-Blitz-September-26-2023"]
[Site "Chess.com"]
[Date "2023.09.26"]
[Round "3"]
[White "Mesa_1"]
[Black "SargissyanSargis"]
[Result "1/2-1/2"]
[WhiteElo "2664"]
[BlackElo "2427"]
[TimeControl "180+1"]
[EndTime "8:27:42 PDT"]
[Termination "Game drawn by repetition"]

1. e4 {[%clk 0:03:00.9]} 1... e5 {[%clk 0:02:57.9]} 2. Nf3 {[%clk 0:03:01.4]}
2... Nc6 {[%clk 0:02:57.1]} 3. Bb5 {[%clk 0:03:02.1]} 3... a6 {[%clk 0:02:57.6]}
4. Bxc6 {[%clk 0:03:02.5]} 4... dxc6 {[%clk 0:02:57.2]} 5. O-O {[%clk
0:03:03.4]} 5... Bd6 {[%clk 0:02:53.4]} 6. d4 {[%clk 0:02:55]} 6... f6 {[%clk
0:02:46]} 7. dxe5 {[%clk 0:02:53.7]} 7... Bxe5 {[%clk 0:02:42.9]} 8. Qxd8+
{[%clk 0:02:54.6]} 8... Kxd8 {[%clk 0:02:43]} 9. Nxe5 {[%clk 0:02:55.5]} 9...
fxe5 {[%clk 0:02:43.1]} 10. Nd2 {[%clk 0:02:52.6]} 10... Nf6 {[%clk 0:02:42.6]}
11. Nf3 {[%clk 0:02:51.7]} 11... Nxe4 {[%clk 0:02:36.1]} 12. Nxe5 {[%clk
0:02:49.5]} 12... Be6 {[%clk 0:02:32.3]} 13. f3 {[%clk 0:02:43.6]} 13... Nf6
{[%clk 0:02:22]} 14. b3 {[%clk 0:02:41.5]} 14... Kc8 {[%clk 0:02:13.7]} 15. Bb2
{[%clk 0:02:42.1]} 15... c5 {[%clk 0:02:11]} 16. Rfe1 {[%clk 0:02:41]} 16... Re8
{[%clk 0:02:06.6]} 17. Re2 {[%clk 0:02:20.9]} 17... b6 {[%clk 0:02:02.9]} 18.
Rae1 {[%clk 0:02:16.5]} 18... Kb7 {[%clk 0:02:03.5]} 19. Nd3 {[%clk 0:02:17]}
19... Bf7 {[%clk 0:01:50.6]} 20. Re7 {[%clk 0:02:14.8]} 20... Bg6 {[%clk
0:01:35.2]} 21. Nf4 {[%clk 0:01:40.9]} 21... Rxe7 {[%clk 0:01:12.2]} 22. Rxe7
{[%clk 0:01:38.8]} 22... Rd8 {[%clk 0:01:01.9]} 23. Be5 {[%clk 0:01:21.5]} 23...
Nd5 {[%clk 0:00:42.9]} 24. Rxg7 {[%clk 0:01:03.3]} 24... Nxf4 {[%clk 0:00:39.4]}
25. Bxf4 {[%clk 0:01:04.2]} 25... Bxc2 {[%clk 0:00:38.9]} 26. Rxc7+ {[%clk
0:01:02]} 26... Ka8 {[%clk 0:00:38.9]} 27. Rc6 {[%clk 0:00:49.2]} 27... Kb7
{[%clk 0:00:37.7]} 28. Rc7+ {[%clk 0:00:49.2]} 28... Ka8 {[%clk 0:00:38]} 29.
Be5 {[%clk 0:00:40.5]} 29... Rd2 {[%clk 0:00:35]} 30. g4 {[%clk 0:00:33.6]}
30... Bd1 {[%clk 0:00:21.9]} 31. Rc8+ {[%clk 0:00:27.7]} 31... Kb7 {[%clk
0:00:21.5]} 32. Rc7+ {[%clk 0:00:28.6]} 32... Ka8 {[%clk 0:00:21.2]} 33. Rc8+
{[%clk 0:00:18.9]} 33... Kb7 {[%clk 0:00:21]} 34. Rc7+ {[%clk 0:00:19.8]} 34...
Ka8 {[%clk 0:00:21.5]} 1/2-1/2

[Event "Early-Titled-Tuesday-Blitz-September-26-2023"]
[Site "Chess.com"]
[Date "2023.09.26"]
[Round "3"]
[White "Crazy_girl99"]
[Black "ChainedDowntohell"]
[Result "1-0"]
[WhiteElo "2734"]
[BlackElo "2483"]
[TimeControl "180+1"]
[EndTime "8:27:43 PDT"]
[Termination "Crazy_girl99 won on time"]

1. Nf3 {[%clk 0:03:00.9]} 1... d5 {[%clk 0:02:57.5]} 2. d4 {[%clk 0:03:00.1]}
2... Nf6 {[%clk 0:02:55.5]} 3. Bf4 {[%clk 0:03:00.2]} 3... e6 {[%clk 0:02:45.7]}
4. e3 {[%clk 0:02:59.7]} 4... Bd6 {[%clk 0:02:45.5]} 5. Bg3 {[%clk 0:02:59.5]}
5... Nc6 {[%clk 0:02:43.5]} 6. Nbd2 {[%clk 0:02:58.7]} 6... Ne7 {[%clk
0:02:41.5]} 7. c3 {[%clk 0:02:58.6]} 7... Nf5 {[%clk 0:02:41.3]} 8. Bd3 {[%clk
0:02:58.7]} 8... O-O {[%clk 0:02:28.3]} 9. Qc2 {[%clk 0:02:56.8]} 9... b6 {[%clk
0:02:23.2]} 10. O-O-O {[%clk 0:02:52.1]} 10... c5 {[%clk 0:02:18.3]} 11. Kb1
{[%clk 0:02:46.8]} 11... c4 {[%clk 0:02:13.6]} 12. Be2 {[%clk 0:02:41.6]} 12...
Bb7 {[%clk 0:01:59.8]} 13. Ne5 {[%clk 0:02:40.1]} 13... b5 {[%clk 0:01:54.3]}
14. Bf3 {[%clk 0:02:30.7]} 14... a5 {[%clk 0:01:19.4]} 15. e4 {[%clk 0:02:29.3]}
15... Nxg3 {[%clk 0:01:07]} 16. hxg3 {[%clk 0:02:30.2]} 16... Qc7 {[%clk
0:00:50.6]} 17. exd5 {[%clk 0:02:15.2]} 17... Bxe5 {[%clk 0:00:17.3]} 18. dxe5
{[%clk 0:02:16.1]} 18... Qxe5 {[%clk 0:00:17.3]} 19. dxe6 {[%clk 0:02:11.8]}
19... Rab8 {[%clk 0:00:12.8]} 20. exf7+ {[%clk 0:02:11.2]} 20... Rxf7 {[%clk
0:00:11.4]} 21. Rde1 {[%clk 0:02:11]} 21... Qc5 {[%clk 0:00:06.4]} 22. Bxb7
{[%clk 0:02:00.3]} 22... Rfxb7 {[%clk 0:00:06.4]} 23. Ne4 {[%clk 0:01:57]} 23...
Nxe4 {[%clk 0:00:04.5]} 24. Qxe4 {[%clk 0:01:56.5]} 24... h6 {[%clk 0:00:04.8]}
25. Qe6+ {[%clk 0:01:51.7]} 25... Kh7 {[%clk 0:00:04.2]} 26. Qe3 {[%clk
0:01:33.9]} 26... Qc7 {[%clk 0:00:02.7]} 27. Rh4 {[%clk 0:01:17.9]} 27... b4
{[%clk 0:00:02.5]} 28. Qe4+ {[%clk 0:00:58.5]} 28... Kh8 {[%clk 0:00:02.6]} 29.
Qxc4 {[%clk 0:00:54.2]} 29... Qd6 {[%clk 0:00:02.4]} 30. Rd4 {[%clk 0:00:43.9]}
30... Qf6 {[%clk 0:00:02.1]} 31. Rf4 {[%clk 0:00:37]} 31... Qg5 {[%clk
0:00:01.2]} 32. Re2 {[%clk 0:00:29.6]} 1-0

[Event "Early-Titled-Tuesday-Blitz-September-26-2023"]
[Site "Chess.com"]
[Date "2023.09.26"]
[Round "3"]
[White "Mackster23"]
[Black "AnaKuchava"]
[Result "1-0"]
[WhiteElo "2563"]
[BlackElo "2234"]
[TimeControl "180+1"]
[EndTime "8:27:43 PDT"]
[Termination "Mackster23 won by resignation"]

1. e4 {[%clk 0:03:00]} 1... c5 {[%clk 0:02:58.1]} 2. Nc3 {[%clk 0:02:59.5]} 2...
Nc6 {[%clk 0:02:54.1]} 3. Nge2 {[%clk 0:02:53.5]} 3... e6 {[%clk 0:02:48.9]} 4.
d4 {[%clk 0:02:52.6]} 4... cxd4 {[%clk 0:02:42.1]} 5. Nxd4 {[%clk 0:02:53.5]}
5... a6 {[%clk 0:02:41.1]} 6. Be3 {[%clk 0:02:25.9]} 6... Nf6 {[%clk 0:02:25.8]}
7. Be2 {[%clk 0:02:07.8]} 7... d6 {[%clk 0:02:17.8]} 8. Qd2 {[%clk 0:02:03.1]}
8... Be7 {[%clk 0:02:15.7]} 9. O-O-O {[%clk 0:01:58.8]} 9... Qc7 {[%clk
0:02:08.1]} 10. g4 {[%clk 0:01:50.4]} 10... b5 {[%clk 0:02:00.1]} 11. g5 {[%clk
0:01:48.5]} 11... Nd7 {[%clk 0:01:59.5]} 12. f4 {[%clk 0:01:40.2]} 12... b4
{[%clk 0:01:33.5]} 13. Na4 {[%clk 0:01:39.4]} 13... Nc5 {[%clk 0:01:16]} 14.
Nxc5 {[%clk 0:01:03.3]} 14... dxc5 {[%clk 0:01:14.1]} 15. Nxc6 {[%clk
0:01:02.6]} 15... Qxc6 {[%clk 0:01:15]} 16. f5 {[%clk 0:00:49.3]} 16... Bb7
{[%clk 0:00:40.2]} 17. f6 {[%clk 0:00:29.1]} 17... gxf6 {[%clk 0:00:33.9]} 18.
gxf6 {[%clk 0:00:30]} 18... Bxf6 {[%clk 0:00:30.2]} 19. Rhf1 {[%clk 0:00:30]}
19... Bg7 {[%clk 0:00:24.1]} 20. Bh5 {[%clk 0:00:28.6]} 20... O-O {[%clk
0:00:20.4]} 21. Bh6 {[%clk 0:00:28.7]} 21... Qxe4 {[%clk 0:00:14.9]} 22. Rg1
{[%clk 0:00:18.6]} 22... Qe5 {[%clk 0:00:07]} 23. Bxg7 {[%clk 0:00:15.3]} 23...
Qxg7 {[%clk 0:00:07.9]} 24. Rxg7+ {[%clk 0:00:14.8]} 24... Kxg7 {[%clk
0:00:08.8]} 25. Qg5+ {[%clk 0:00:15.1]} 25... Kh8 {[%clk 0:00:07.4]} 26. Qf6+
{[%clk 0:00:16]} 26... Kg8 {[%clk 0:00:07.5]} 27. Rg1+ {[%clk 0:00:16.9]} 1-0